bitfinex-derivatives/quotes_BTCF0:USTF0_20250912
["timestamp","ask_amount","ask_price","bid_price","bid_amount"]
[1757699286285,0.03655,115930.0,115920.0,1.31267038]
[1757699287075,0.03555,115930.0,115920.0,1.31267038]
[1757699287276,0.03655,115930.0,115920.0,1.31267038]
[1757699290480,0.03655,115930.0,115920.0,2.13743038]
[1757699292186,0.03655,115930.0,115920.0,2.13735038]
[1757699292385,0.03655,115930.0,115920.0,2.13727038]
[1757699293086,0.03655,115930.0,115920.0,1.7154]
[1757699293286,0.03655,115930.0,115920.0,2.13727038]
[1757699295189,0.03655,115930.0,115920.0,1.7154]
[1757699295385,0.03655,115930.0,115920.0,2.13727038]
[1757699296186,0.03655,115930.0,115920.0,1.7154]
[1757699296485,0.03655,115930.0,115920.0,2.13727038]
[1757699297284,0.002,115930.0,115920.0,2.47349078]
[1757699297588,0.002,115930.0,115920.0,1.64889078]
[1757699297783,0.002,115930.0,115920.0,2.47329078]
[1757699299286,0.001,115930.0,115920.0,2.47429078]
[1757699299589,0.01359,115950.0,115920.0,2.47529078]
[1757699299884,0.03553,115950.0,115930.0,0.3608]
[1757699300090,0.03553,115950.0,115940.0,1.60695038]
[1757699300390,0.03553,115950.0,115940.0,2.15691038]
[1757699300889,0.03653,115950.0,115940.0,2.15691038]
[1757699301090,0.01459,115950.0,115940.0,2.15691038]
[1757699301884,0.01559,115950.0,115940.0,2.15691038]
[1757699302388,0.01459,115950.0,115940.0,2.16569985]
[1757699302689,0.01559,115950.0,115940.0,2.15691038]
[1757699303190,0.0381,115950.0,115940.0,1.33267038]
[1757699303381,0.0381,115950.0,115940.0,2.15675038]
[1757699303582,0.0381,115950.0,115940.0,1.33267038]
[1757699303783,0.0381,115950.0,115940.0,2.15671038]
[1757699304397,0.0381,115950.0,115940.0,1.33267038]
[1757699304696,0.0381,115950.0,115940.0,2.15667038]
[1757699307383,0.01559,115950.0,115940.0,2.15667038]
[1757699307779,0.002,115950.0,115940.0,2.15667038]
[1757699308384,0.01518,115950.0,115940.0,2.15667038]
[1757699308593,0.01518,115950.0,115940.0,2.16518015]
[1757699308984,0.01518,115950.0,115940.0,2.15667038]
[1757699310193,0.002,115950.0,115940.0,2.15667038]
[1757699310590,0.002,115950.0,115940.0,2.16547448]
[1757699313192,0.002,115950.0,115940.0,1.7436041]
[1757699313397,0.002,115950.0,115940.0,2.16547448]
[1757699313990,0.002,115950.0,115940.0,1.7436041]
[1757699314289,0.002,115950.0,115940.0,2.16547448]
[1757699317093,0.001,115950.0,115940.0,2.16547448]
[1757699317296,0.001,115950.0,115940.0,2.16647448]
[1757699317595,0.001,115950.0,115940.0,2.2353929]
[1757699317997,0.01359,115960.0,115940.0,2.2363929]
[1757699318183,0.0361,115960.0,115950.0,0.80254848]
[1757699318389,0.0361,115960.0,115950.0,1.35254848]
[1757699319900,0.01359,115960.0,115950.0,1.35254848]
[1757699321598,0.01359,115960.0,115950.0,0.9306781]
[1757699321800,0.01359,115960.0,115950.0,1.35254848]
[1757699322001,0.38289116,115970.0,115950.0,1.35254848]
[1757699322195,0.43189823,115970.0,115960.0,1.24503038]
[1757699322391,0.42339707,115970.0,115960.0,1.82503038]
[1757699323300,0.42439707,115970.0,115960.0,1.82503038]
[1757699323510,0.06359707,115970.0,115960.0,1.82503038]
[1757699323698,0.0371,115970.0,115960.0,1.82503038]
[1757699324191,0.0381,115970.0,115960.0,1.82503038]
[1757699324789,0.0371,115970.0,115960.0,1.82503038]
[1757699324995,0.04673577,115970.0,115960.0,1.82503038]
[1757699325194,0.07324304,115970.0,115960.0,1.82503038]
[1757699325803,0.06460727,115970.0,115960.0,1.82503038]
[1757699327997,0.06460727,115970.0,115960.0,1.82479038]
[1757699328201,0.06460727,115970.0,115960.0,1.82471038]
[1757699329400,0.0381,115970.0,115960.0,1.82471038]
[1757699330507,0.0381,115970.0,115960.0,1.00187038]
[1757699330704,0.0381,115970.0,115960.0,1.82455038]
[1757699330899,0.06463521,115970.0,115960.0,1.82455038]
[1757699331813,0.04212521,115970.0,115960.0,1.82455038]
[1757699332109,0.02853521,115970.0,115960.0,1.82455038]
[1757699332303,0.002,115970.0,115960.0,2.18535038]
[1757699332700,0.01493,115970.0,115960.0,2.18535038]
[1757699335714,0.01493,115970.0,115960.0,2.18511038]
[1757699338413,0.01493,115970.0,115960.0,2.18499038]
[1757699339619,0.01493,115970.0,115960.0,2.18491038]
[1757699340320,0.01493,115970.0,115960.0,2.18483038]
[1757699340521,0.01493,115970.0,115960.0,2.13762828]
[1757699341315,0.01493,115970.0,115960.0,1.76296]
[1757699341521,0.01493,115970.0,115960.0,2.13762828]
[1757699347722,0.01493,115970.0,115960.0,1.76296]
[1757699347924,0.01493,115970.0,115960.0,1.31546828]
[1757699348125,0.01493,115970.0,115960.0,2.13726828]
[1757699348518,0.26493,115970.0,115960.0,0.9408]
[1757699348723,0.28785,115970.0,115960.0,1.58909414]
[1757699348925,0.28785,115970.0,115960.0,1.6089787]
[1757699349127,0.28785,115970.0,115960.0,1.79631284]
[1757699349327,0.28785,115970.0,115960.0,1.6089787]
[1757699349524,0.28785,115970.0,115960.0,1.79631284]
[1757699350823,0.28785,115970.0,115960.0,1.42164456]
[1757699351025,0.28785,115970.0,115960.0,1.79631284]
[1757699351430,0.28785,115970.0,115960.0,1.42164456]
[1757699351624,0.28785,115970.0,115960.0,1.79631284]
[1757699352222,0.28785,115970.0,115960.0,2.15711284]
[1757699359933,0.28785,115970.0,115960.0,1.78244456]
[1757699360134,0.28785,115970.0,115960.0,2.15711284]
[1757699360432,0.28785,115970.0,115960.0,1.78244456]
[1757699360631,0.28785,115970.0,115960.0,2.15711284]
[1757699361231,0.28785,115970.0,115960.0,1.78244456]
[1757699361431,0.28785,115970.0,115960.0,2.15711284]
[1757699361932,0.28785,115970.0,115960.0,1.78244456]
[1757699362134,0.28785,115970.0,115960.0,2.15711284]
[1757699362536,0.28785,115970.0,115960.0,1.78244456]
[1757699362734,0.28785,115970.0,115960.0,2.15711284]
[1757699365435,0.03785,115970.0,115960.0,2.15711284]
[1757699365735,0.01493,115970.0,115960.0,2.15711284]
[1757699366234,0.01493,115970.0,115960.0,1.78244456]
[1757699366436,0.01493,115970.0,115960.0,2.15711284]
[1757699366632,0.01493,115970.0,115960.0,1.78244456]
[1757699366939,0.01493,115970.0,115960.0,2.15711284]
[1757699370340,0.01493,115970.0,115960.0,1.33535284]
[1757699370537,0.01493,115970.0,115960.0,2.15631284]
[1757699371041,0.002,115970.0,115960.0,1.78164456]
[1757699371236,0.002,115970.0,115960.0,0.96068456]
[1757699371432,0.002,115970.0,115960.0,1.33535284]
[1757699371631,0.01566,115970.0,115960.0,2.15627284]
[1757699373035,0.002,115970.0,115960.0,2.40627284]
[1757699374729,0.002,115970.0,115960.0,2.03160456]
[1757699374933,0.002,115970.0,115960.0,2.40627284]
[1757699375141,0.002,115970.0,115960.0,2.40619284]
[1757699375945,0.01566,115970.0,115960.0,1.21068456]
[1757699376141,0.01566,115970.0,115960.0,2.40615284]
[1757699376341,0.01566,115970.0,115960.0,2.03148456]
[1757699376535,0.01566,115970.0,115960.0,2.40611284]
[1757699377746,0.01566,115970.0,115960.0,1.21068456]
[1757699377948,0.002,115970.0,115960.0,2.40607284]
[1757699378447,0.002,115970.0,115960.0,2.03140456]
[1757699378645,0.002,115970.0,115960.0,2.40607284]
[1757699379348,0.002,115970.0,115960.0,2.15607284]
[1757699379848,0.002,115970.0,115960.0,1.33535284]
[1757699380149,0.01566,115970.0,115960.0,2.15607284]
[1757699380446,0.03821,115970.0,115960.0,2.15599284]
[1757699380646,0.01566,115970.0,115960.0,2.15599284]
[1757699381246,0.01566,115970.0,115960.0,1.78132456]
[1757699381444,0.01566,115970.0,115960.0,2.15599284]
[1757699382941,0.01566,115970.0,115960.0,1.33535284]
[1757699383341,0.01566,115970.0,115960.0,2.15587284]
[1757699384045,0.01566,115970.0,115960.0,0.96068456]
[1757699384243,0.01566,115970.0,115960.0,1.78116456]
[1757699384444,0.01566,115970.0,115960.0,2.15583284]
[1757699385049,0.01566,115970.0,115960.0,1.78116456]
[1757699385250,0.01566,115970.0,115960.0,2.15583284]
[1757699386558,0.01566,115970.0,115960.0,1.78112456]
[1757699386850,0.01566,115970.0,115960.0,2.15579284]
[1757699388046,0.01566,115970.0,115960.0,0.96068456]
[1757699388246,0.2520665,115970.0,115960.0,1.42024456]
[1757699388652,0.2520665,115970.0,115960.0,1.6075787]
[1757699388854,0.2520665,115970.0,115960.0,1.42024456]
[1757699389152,0.2520665,115970.0,115960.0,1.6075787]
[1757699389352,0.06473236,115970.0,115960.0,1.6075787]
[1757699390045,0.2520665,115970.0,115960.0,1.6075787]
[1757699390349,0.06473236,115970.0,115960.0,1.79491284]
[1757699390541,0.06473236,115970.0,115960.0,1.42024456]
[1757699390747,0.06473236,115970.0,115960.0,1.6075787]
[1757699390941,0.06473236,115970.0,115960.0,1.79491284]
[1757699391549,0.06473236,115970.0,115960.0,1.42024456]
[1757699391748,0.06473236,115970.0,115960.0,1.79491284]
[1757699392149,0.06473236,115970.0,115960.0,1.6075787]
[1757699392556,0.06473236,115970.0,115960.0,0.7872187]
[1757699393055,0.06473236,115970.0,115960.0,1.42008456]
[1757699393447,0.06473236,115970.0,115960.0,1.6074187]
[1757699393845,0.06473236,115970.0,115960.0,0.59988456]
[1757699394253,0.6128665,115970.0,115960.0,1.40016]
[1757699394445,0.6128665,115970.0,115960.0,0.76733414]
[1757699394650,0.6128665,115970.0,115960.0,1.58745414]
[1757699394850,0.6128665,115970.0,115960.0,1.40012]
[1757699395050,0.42553236,115970.0,115960.0,1.58745414]
[1757699395251,0.58634414,115970.0,115960.0,1.58745414]
[1757699395451,0.58634414,115970.0,115960.0,1.40012]
[1757699395661,0.58634414,115970.0,115960.0,1.58745414]
[1757699395857,0.58634414,115970.0,115960.0,1.40012]
[1757699396059,0.58634414,115970.0,115960.0,1.58745414]
[1757699396970,0.39901,115970.0,115960.0,1.40012]
[1757699397171,0.58634414,115970.0,115960.0,1.40012]
[1757699397471,0.58634414,115970.0,115960.0,1.58741414]
[1757699397973,0.39901,115970.0,115960.0,1.40008]
[1757699398175,0.58634414,115970.0,115960.0,1.58741414]
[1757699398470,0.22554414,115970.0,115960.0,1.58741414]
[1757699398673,0.03821,115970.0,115960.0,1.40008]
[1757699398872,0.03821,115970.0,115960.0,1.58741414]
[1757699399074,0.03821,115970.0,115960.0,1.40008]
[1757699399269,0.03821,115970.0,115960.0,1.58741414]
[1757699399870,0.03821,115970.0,115960.0,1.40008]
[1757699400172,0.03821,115970.0,115960.0,1.58741414]
[1757699400475,0.15617222,115970.0,115960.0,1.68110444]
[1757699400676,0.01566,115970.0,115960.0,1.68110444]
[1757699401063,0.17923222,115970.0,115960.0,0.58]
[1757699401479,0.17923222,115970.0,115960.0,1.54047222]
[1757699401680,0.17923222,115970.0,115960.0,1.68098444]
[1757699402066,0.03872,115970.0,115960.0,1.68098444]
[1757699402268,0.17923222,115970.0,115960.0,1.68098444]
[1757699402668,0.03872,115970.0,115960.0,1.68098444]
[1757699402866,0.17923222,115970.0,115960.0,1.39996]
[1757699403076,0.17923222,115970.0,115960.0,1.68098444]
[1757699403576,0.17923222,115970.0,115960.0,0.58]
[1757699403774,0.03872,115970.0,115960.0,1.39996]
[1757699403975,0.17923222,115970.0,115960.0,1.39996]
[1757699404374,0.17923222,115970.0,115960.0,0.86102444]
[1757699404576,0.17923222,115970.0,115960.0,1.68094444]
[1757699404777,0.17923222,115970.0,115960.0,1.68090444]
[1757699405077,0.03872,115970.0,115960.0,1.68090444]
[1757699405279,0.17923222,115970.0,115960.0,1.68090444]
[1757699405575,0.03872,115970.0,115960.0,1.39988]
[1757699405778,0.17923222,115970.0,115960.0,1.68090444]
[1757699406980,0.17923222,115970.0,115960.0,0.58]
[1757699407282,0.03872,115970.0,115960.0,1.68086444]
[1757699407481,0.17923222,115970.0,115960.0,1.39984]
[1757699407780,0.03872,115970.0,115960.0,1.39984]
[1757699407980,0.17923222,115970.0,115960.0,1.68086444]
[1757699408181,0.17923222,115970.0,115960.0,1.39984]
[1757699408374,0.17923222,115970.0,115960.0,1.68086444]
[1757699408580,0.17923222,115970.0,115960.0,1.39984]
[1757699408885,0.17923222,115970.0,115960.0,2.04166444]
[1757699409182,0.17923222,115970.0,115960.0,1.76064]
[1757699409384,0.17923222,115970.0,115960.0,1.68086444]
[1757699409685,0.03872,115970.0,115960.0,1.68086444]
[1757699409986,0.17923222,115970.0,115960.0,1.68086444]
[1757699410683,0.03872,115970.0,115960.0,1.68086444]
[1757699410884,0.17923222,115970.0,115960.0,1.68086444]
[1757699411084,0.03872,115970.0,115960.0,1.68086444]
[1757699411276,0.03872,115970.0,115960.0,1.39984]
[1757699411477,0.17923222,115970.0,115960.0,1.68086444]
[1757699411975,0.03872,115970.0,115960.0,1.68086444]
[1757699412281,0.17923222,115970.0,115960.0,1.54035222]
[1757699412486,0.17923222,115970.0,115960.0,1.68086444]
[1757699412885,0.03872,115970.0,115960.0,1.68086444]
[1757699413087,0.17923222,115970.0,115960.0,1.68086444]
[1757699413388,0.17923222,115970.0,115960.0,1.39984]
[1757699413689,0.17923222,115970.0,115960.0,1.68086444]
[1757699414386,0.17923222,115970.0,115960.0,1.39984]
[1757699414588,0.17923222,115970.0,115960.0,1.68086444]
[1757699414886,0.03872,115970.0,115960.0,1.68086444]
[1757699415278,0.17923222,115970.0,115960.0,1.68086444]
[1757699415877,0.03872,115970.0,115960.0,1.68086444]
[1757699416078,0.17923222,115970.0,115960.0,1.68086444]
[1757699416390,0.03872,115970.0,115960.0,1.68086444]
[1757699416580,0.17923222,115970.0,115960.0,1.39984]
[1757699416786,0.17923222,115970.0,115960.0,1.68086444]
[1757699416986,0.17923222,115970.0,115960.0,1.701008]
[1757699417684,0.03872,115970.0,115960.0,1.701008]
[1757699417887,0.17923222,115970.0,115960.0,1.701008]
[1757699418087,0.03872,115970.0,115960.0,1.701008]
[1757699418278,0.17923222,115970.0,115960.0,1.701008]
[1757699419482,0.03872,115970.0,115960.0,1.701008]
[1757699419684,0.17923222,115970.0,115960.0,1.41998356]
[1757699419892,0.17923222,115970.0,115960.0,1.700688]
[1757699420581,0.03872,115970.0,115960.0,1.700688]
[1757699420891,0.01566,115970.0,115960.0,1.700688]
[1757699421079,0.15617222,115970.0,115960.0,1.700688]
[1757699421481,0.15617222,115970.0,115960.0,1.41966356]
[1757699421787,0.15617222,115970.0,115960.0,1.700688]
[1757699422887,0.15617222,115970.0,115960.0,0.881168]
[1757699423080,0.17728222,115970.0,115960.0,0.58]
[1757699423286,0.17728222,115970.0,115960.0,1.70077983]
[1757699423482,0.03677,115970.0,115960.0,1.70077983]
[1757699423986,0.17728222,115970.0,115960.0,1.41975539]
[1757699424290,0.17728222,115970.0,115960.0,1.70077983]
[1757699424475,0.17728222,115970.0,115960.0,1.41975539]
[1757699424681,0.17728222,115970.0,115960.0,1.70077983]
[1757699424881,0.17728222,115970.0,115960.0,1.41975539]
[1757699425183,0.03677,115970.0,115960.0,1.70077983]
[1757699425389,0.17728222,115970.0,115960.0,1.70077983]
[1757699426388,0.03677,115970.0,115960.0,1.70077983]
[1757699426585,0.03677,115970.0,115960.0,0.88137983]
[1757699426792,0.17728222,115970.0,115960.0,1.41967539]
[1757699427185,0.17728222,115970.0,115960.0,1.70069983]
[1757699427694,0.17728222,115970.0,115960.0,0.88137983]
[1757699427991,0.53808222,115970.0,115960.0,1.56010761]
[1757699428396,0.67859444,115970.0,115960.0,1.41959539]
[1757699428582,0.67859444,115970.0,115960.0,1.56010761]
[1757699429294,0.53808222,115970.0,115960.0,1.56010761]
[1757699429492,0.39757,115970.0,115960.0,1.56010761]
[1757699429694,0.17728222,115970.0,115960.0,1.70061983]
[1757699430093,0.53808222,115970.0,115960.0,1.70061983]
[1757699430390,0.17728222,115970.0,115960.0,1.70061983]
[1757699430586,0.03677,115970.0,115960.0,1.70061983]
[1757699430787,0.14251222,115970.0,115960.0,1.84113205]
[1757699430990,0.14251222,115970.0,115960.0,1.41959539]
[1757699431295,0.15621222,115970.0,115960.0,1.70061983]
[1757699433589,0.17732222,115970.0,115960.0,0.88137983]
[1757699433788,0.17732222,115970.0,115960.0,1.70041983]
[1757699434391,0.17732222,115970.0,115960.0,1.41939539]
[1757699434589,0.17732222,115970.0,115960.0,1.55986761]
[1757699435399,0.17732222,115970.0,115960.0,1.70037983]
[1757699435999,0.03681,115970.0,115960.0,1.70037983]
[1757699436191,0.17732222,115970.0,115960.0,1.70037983]
[1757699436596,0.03681,115970.0,115960.0,1.70037983]
[1757699436792,0.17732222,115970.0,115960.0,1.70037983]
[1757699439000,0.17732222,115970.0,115960.0,1.41935539]
[1757699439299,0.17732222,115970.0,115960.0,1.70037983]
[1757699439604,0.17732222,115970.0,115960.0,0.88137983]
[1757699439901,0.17732222,115970.0,115960.0,1.55970761]
[1757699440089,0.17732222,115970.0,115960.0,1.41919539]
[1757699440291,0.17732222,115970.0,115960.0,1.55970761]
[1757699440700,0.17732222,115970.0,115960.0,1.41919539]
[1757699440903,0.20374938,115970.0,115960.0,1.55970761]
[1757699441295,0.84557382,115970.0,115960.0,0.60035539]
[1757699441495,0.84557382,115970.0,115960.0,1.41915539]
[1757699441696,0.42403716,115970.0,115960.0,1.41911539]
[1757699441994,0.84557382,115970.0,115960.0,1.41911539]
[1757699442591,0.42403716,115970.0,115960.0,0.58]
[1757699442799,0.84557382,115970.0,115960.0,1.39876]
[1757699444499,0.42403716,115970.0,115960.0,1.39876]
[1757699444703,0.84557382,115970.0,115960.0,1.39876]
[1757699445296,0.81914666,115970.0,115960.0,0.58]
[1757699445493,1.06914666,115970.0,115960.0,0.58]
[1757699445709,0.6740299,115970.0,115960.0,0.54599425]
[1757699445900,1.09556656,115970.0,115960.0,0.54599425]
[1757699446097,0.6740299,115970.0,115960.0,0.54599425]
[1757699446298,1.09556656,115970.0,115960.0,0.54599425]
[1757699448601,0.03625,115960.0,115950.0,0.8186]
[1757699448809,0.81858666,115960.0,115950.0,0.53]
[1757699449504,0.39705,115960.0,115950.0,0.53]
[1757699449808,0.81858666,115960.0,115950.0,0.53]
[1757699452204,0.39705,115960.0,115950.0,0.53]
[1757699452505,0.81858666,115960.0,115950.0,0.53]
[1757699454809,1.63702666,115960.0,115950.0,0.53]
[1757699455002,1.63698666,115960.0,115950.0,0.53]
[1757699455603,0.39705,115960.0,115950.0,0.53]
[1757699455901,1.63698666,115960.0,115950.0,0.53]
[1757699456106,0.81858666,115960.0,115950.0,0.53]
[1757699458017,1.63694666,115960.0,115950.0,0.53]
[1757699458206,0.81858666,115960.0,115950.0,0.53]
[1757699458712,1.63690666,115960.0,115950.0,0.53]
[1757699459209,0.81858666,115960.0,115950.0,0.53]
[1757699459512,1.63690666,115960.0,115950.0,0.53]
[1757699459712,0.81858666,115960.0,115950.0,0.53]
[1757699459914,1.63690666,115960.0,115950.0,0.53]
[1757699460909,0.81858666,115960.0,115950.0,0.53]
[1757699461110,1.63686666,115960.0,115950.0,0.53]
[1757699461316,0.03564,115940.0,115930.0,0.83844872]
[1757699461506,0.19360827,115940.0,115930.0,1.39844872]
[1757699461813,0.55440827,115940.0,115930.0,1.39844872]
[1757699462110,0.69492049,115940.0,115930.0,1.53896094]
[1757699462313,0.69492049,115940.0,115930.0,1.39844872]
[1757699462515,0.60137228,115940.0,115930.0,1.39844872]
[1757699462716,0.60137228,115940.0,115930.0,1.40044872]
[1757699462916,0.05309605,115940.0,115930.0,1.58792495]
[1757699463213,0.03110605,115940.0,115930.0,1.58992495]
[1757699463812,0.03110605,115940.0,115930.0,1.40244872]
[1757699464314,0.03110605,115940.0,115930.0,1.58992495]
[1757699464716,0.03110605,115940.0,115930.0,1.40244872]
[1757699464911,0.03110605,115940.0,115930.0,1.58992495]
[1757699465516,0.01745605,115940.0,115930.0,1.58992495]
[1757699465910,0.03110605,115940.0,115930.0,1.58992495]
[1757699467018,0.03110605,115940.0,115930.0,1.40244872]
[1757699467208,0.03110605,115940.0,115930.0,1.58992495]
[1757699467407,0.21858228,115940.0,115930.0,1.58992495]
[1757699469118,0.03110605,115940.0,115930.0,1.58992495]
[1757699470219,0.03110605,115940.0,115930.0,0.58416872]
[1757699470514,0.03110605,115940.0,115930.0,1.58968495]
[1757699475721,0.01745605,115940.0,115930.0,1.58968495]
[1757699476022,0.01745605,115940.0,115930.0,1.58952495]
[1757699476221,0.03110605,115940.0,115930.0,1.58952495]
[1757699478823,0.01365,115940.0,115930.0,1.58952495]
[1757699479026,0.03096825,115940.0,115930.0,1.58952495]
[1757699479522,0.03096825,115940.0,115930.0,0.77164495]
[1757699479725,0.03096825,115940.0,115930.0,1.40192872]
[1757699479923,0.03096825,115940.0,115930.0,1.58940495]
[1757699480526,0.03096825,115940.0,115930.0,1.40192872]
[1757699480725,0.03096825,115940.0,115930.0,1.58940495]
[1757699481325,0.01731825,115940.0,115930.0,1.58940495]
[1757699481624,0.01731825,115940.0,115930.0,0.77164495]
[1757699482026,0.01731825,115940.0,115930.0,1.58932495]
[1757699482228,0.03130825,115940.0,115930.0,1.58932495]
[1757699482827,0.03130825,115940.0,115930.0,0.77164495]
[1757699483028,0.05270825,115940.0,115930.0,1.58932495]
[1757699483328,0.03539,115940.0,115930.0,1.58932495]
[1757699483526,0.42790507,115940.0,115930.0,1.38164]
[1757699484033,0.42790507,115940.0,115930.0,0.564]
[1757699484333,0.42790507,115940.0,115930.0,1.3816]
[1757699486126,0.42790507,115940.0,115930.0,1.3806]
[1757699486330,0.43651519,115940.0,115930.0,1.3796]
[1757699488920,0.24903896,115940.0,115930.0,1.3796]
[1757699489333,0.24903896,115940.0,115930.0,0.562]
[1757699489631,0.24903896,115940.0,115930.0,1.3794]
[1757699491032,0.24903896,115940.0,115930.0,1.37936]
[1757699491233,0.24903896,115940.0,115930.0,1.37932]
[1757699491829,0.43651519,115940.0,115930.0,1.37932]
[1757699492030,0.24903896,115940.0,115930.0,1.37932]
[1757699493134,0.43651519,115940.0,115930.0,1.37932]
[1757699493537,0.43651519,115940.0,115930.0,0.562]
[1757699493727,0.79731519,115940.0,115930.0,0.562]
[1757699494052,1.04736519,115940.0,115930.0,1.37924]
[1757699494429,1.04736519,115940.0,115930.0,0.562]
[1757699495427,2.07844097,115940.0,115930.0,0.562]
[1757699495631,0.01399,115890.0,115880.0,0.3608]
[1757699495830,0.03539,115890.0,115880.0,0.96105777]
[1757699496025,0.22286623,115890.0,115880.0,2.065694]
[1757699496232,0.22286623,115890.0,115880.0,1.87821777]
[1757699496438,0.03539,115890.0,115880.0,1.77821777]
[1757699496735,0.22286623,115890.0,115880.0,1.604894]
[1757699496931,0.03539,115890.0,115880.0,1.41741777]
[1757699497438,0.03539,115890.0,115880.0,1.604894]
[1757699498329,0.04410326,115890.0,115880.0,1.42341777]
[1757699498530,0.04410326,115890.0,115880.0,1.614894]
[1757699498928,0.01399,115900.0,115880.0,2.60064646]
[1757699499136,0.39210258,115910.0,115890.0,0.54827623]
[1757699499334,0.41350258,115910.0,115900.0,1.00459623]
[1757699499535,0.41350258,115910.0,115900.0,1.56459623]
[1757699500136,0.41350258,115910.0,115900.0,1.37712]
[1757699500336,0.41350258,115910.0,115900.0,1.56459623]
[1757699501341,0.60097881,115910.0,115900.0,1.56459623]
[1757699501640,0.67033579,115910.0,115900.0,1.56459623]
[1757699501833,0.67033579,115910.0,115900.0,1.56659623]
[1757699502034,0.67038579,115910.0,115900.0,1.56659623]
[1757699502233,0.67038579,115910.0,115900.0,1.56959623]
[1757699502532,0.67038579,115910.0,115900.0,1.38212]
[1757699502840,0.03135258,115910.0,115900.0,2.11787246]
[1757699503136,0.01736258,115910.0,115900.0,2.36787246]
[1757699505342,0.01736258,115910.0,115900.0,2.36687246]
[1757699507943,5e-05,115910.0,115900.0,2.38702047]
[1757699508632,5e-05,115910.0,115900.0,2.3956687]
[1757699509042,5e-05,115910.0,115900.0,2.38702047]
[1757699510248,5e-05,115910.0,115900.0,1.19494801]
[1757699510446,0.0138,115910.0,115900.0,1.56990047]
[1757699510645,0.0138,115910.0,115900.0,2.38678047]
[1757699510846,0.0138,115910.0,115900.0,2.19930424]
[1757699511047,5e-05,115910.0,115900.0,2.38678047]
[1757699513145,5e-05,115910.0,115900.0,2.38670047]
[1757699518455,5e-05,115910.0,115900.0,2.4572155]
[1757699520860,5e-05,115910.0,115900.0,2.4569355]
[1757699521161,5e-05,115910.0,115900.0,1.6404155]
[1757699521360,5e-05,115910.0,115900.0,2.4569355]
[1757699523162,5e-05,115910.0,115900.0,2.4568555]
[1757699523461,5e-05,115910.0,115900.0,2.08190304]
[1757699523866,5e-05,115910.0,115900.0,2.4568555]
[1757699524364,5e-05,115910.0,115900.0,2.50381179]
[1757699528357,5e-05,115910.0,115900.0,2.08190304]
[1757699528563,0.01346,115910.0,115900.0,2.50365179]
[1757699529064,0.40409625,115910.0,115900.0,1.76122801]
[1757699529260,0.40409625,115910.0,115900.0,1.68170051]
[1757699529455,0.40409625,115910.0,115900.0,2.04250051]
[1757699529661,0.26346,115910.0,115900.0,2.18313676]
[1757699529864,5e-05,115910.0,115900.0,2.18313676]
[1757699532965,5e-05,115910.0,115900.0,2.25378959]
[1757699534768,5e-05,115910.0,115900.0,1.83188084]
[1757699535068,5e-05,115910.0,115900.0,2.25378959]
[1757699535269,5e-05,115910.0,115900.0,1.83188084]
[1757699535469,5e-05,115910.0,115900.0,2.25378959]
[1757699539675,5e-05,115910.0,115900.0,1.43750959]
[1757699539874,5e-05,115910.0,115900.0,2.25338959]
[1757699540267,5e-05,115910.0,115900.0,1.83148084]
[1757699540579,5e-05,115910.0,115900.0,2.25338959]
[1757699543175,5e-05,115910.0,115900.0,2.33962029]
[1757699543370,0.0177674,115930.0,115900.0,2.58962029]
[1757699543570,0.0177674,115930.0,115920.0,0.78270875]
[1757699543774,0.0177674,115930.0,115920.0,2.19866235]
[1757699546481,0.0177674,115930.0,115920.0,2.19854235]
[1757699546782,0.0304974,115930.0,115920.0,2.19854235]
[1757699546972,0.0304974,115930.0,115920.0,1.38290235]
[1757699547379,0.0304974,115930.0,115920.0,2.19850235]
[1757699549087,0.0177674,115930.0,115920.0,2.19850235]
[1757699549783,0.0177674,115930.0,115920.0,1.7765936]
[1757699549985,0.0177674,115930.0,115920.0,2.19850235]
[1757699551186,0.0304974,115930.0,115920.0,2.19850235]
[1757699551392,0.0304974,115930.0,115920.0,1.7765936]
[1757699551589,0.0304974,115930.0,115920.0,2.19850235]
[1757699551996,0.0304974,115930.0,115920.0,0.9609936]
[1757699552191,0.0304974,115930.0,115920.0,2.19834235]
[1757699553386,0.0304974,115930.0,115920.0,1.38290235]
[1757699553687,0.0304974,115930.0,115920.0,2.19822235]
[1757699553990,0.17113365,115930.0,115920.0,2.0575861]
[1757699554290,0.0304974,115930.0,115920.0,2.0575861]
[1757699554984,0.0304974,115930.0,115920.0,1.7763136]
[1757699555185,0.0304974,115930.0,115920.0,2.19822235]
[1757699556388,0.0304974,115930.0,115920.0,2.0575861]
[1757699556597,0.17113365,115930.0,115920.0,2.0575861]
[1757699556783,0.3346999,115930.0,115920.0,0.74082985]
[1757699556983,0.3346999,115930.0,115920.0,0.6001936]
[1757699556984,0.72533615,115930.0,115920.0,0.6001936]
[1757699557287,0.72533615,115930.0,115920.0,1.4153536]
[1757699557587,0.9454999,115930.0,115920.0,1.55598985]
[1757699558091,1.08613615,115930.0,115920.0,1.39516]
[1757699559291,0.83613615,115930.0,115920.0,1.39516]
[1757699562193,0.0534274,115930.0,115920.0,1.6764325]
[1757699562392,0.19406365,115930.0,115920.0,1.6764325]
[1757699562891,0.19406365,115930.0,115920.0,1.53579625]
[1757699563094,0.0304974,115930.0,115920.0,2.0372325]
[1757699563296,0.17113365,115930.0,115920.0,2.0372325]
[1757699563499,0.17113365,115930.0,115920.0,1.6764325]
[1757699563996,0.17113365,115930.0,115920.0,1.39516]
[1757699564199,0.17113365,115930.0,115920.0,1.6764325]
[1757699564498,0.17113365,115930.0,115920.0,1.39516]
[1757699564697,0.17113365,115930.0,115920.0,1.6764325]
[1757699564897,0.0304974,115930.0,115920.0,1.6764325]
[1757699565098,0.17113365,115930.0,115920.0,1.39516]
[1757699565591,0.6725699,115930.0,115920.0,1.53579625]
[1757699566584,0.3912974,115930.0,115920.0,1.53579625]
[1757699566788,0.53193365,115930.0,115920.0,1.39516]
[1757699566992,0.53193365,115930.0,115920.0,1.75596]
[1757699566993,0.17113365,115930.0,115920.0,1.75596]
[1757699567499,0.17113365,115930.0,115920.0,2.0372325]
[1757699568002,0.0304974,115930.0,115920.0,2.0372325]
[1757699568191,0.17113365,115930.0,115920.0,2.0372325]
[1757699568591,0.0304974,115930.0,115920.0,2.0372325]
[1757699568794,0.17113365,115930.0,115920.0,2.0372325]
[1757699568997,0.17113365,115930.0,115920.0,1.75596]
[1757699569290,0.17113365,115930.0,115920.0,2.0372325]
[1757699570503,0.17113365,115930.0,115920.0,1.75596]
[1757699570700,0.17113365,115930.0,115920.0,2.0372325]